[Event "German Bundesliga 2023-24"]
[Site "Germany"]
[Date "2024.02.25"]
[Round "11.42"]
[White "Ragger, Markus"]
[Black "Kraemer, Martin"]
[Result "1/2-1/2"]
[ECO "B51"]
[WhiteElo "2615"]
[BlackElo "2579"]
[Annotator "TA"]
[PlyCount "99"]
[EventDate "2023.10.20"]
[EventType "team-tourn"]
[EventCountry "GER"]
[SourceTitle "playchess.com"]
[Source "ChessBase"]
[SourceQuality "1"]
[TimeControl "40/6000+30:3000+30"]

{[%evp 22,99,21,19,61,55,65,33,33,31,20,36,15,22,33,16,25,18,23,16,23,25,20,23,25,24,33,7,7,7,7,7,7,7,14,7,14,0,16,8,10,10,9,6,18,15,15,15,15,15,15,15,15,15,15,15,15,15,15,0,0,0,0,0,0,0,0,0,-8,-14,0,0,0,0,0,0,0,0,0,0]} 1. e4 {[%emt 0:00:02]} c5 {[%emt 0:00:03]} 2. Nf3 {[%emt 0:00:04]} d6 {[%emt 0:00:02]} 3. Bb5+ {[%emt 0:00:06]} Nd7 {[%emt 0:00:03]} 4. O-O {[%emt 0:00:12]} a6 {[%emt 0:00:02]} 5. Be2 {[%emt 0:00:13]} Ngf6 {[%emt 0:00:29]} 6. d3 {[%emt 0:00:11] B51: Sicilian: Moscow Variation (3 Bb5+) without 3...Bd7.} e6 {[%emt 0:04:08]} 7. a4 {[%emt 0:00:07]} Be7 {[%emt 0:11:22]} 8. a5 {[%emt 0:02:43]} O-O {[%emt 0:07:04]} 9. Re1 $146 {[%emt 0:12:36]} ({Predecessor:} 9. Nc3 Nb8 10. e5 Ne8 11. exd6 Nxd6 12. d4 cxd4 13. Nxd4 e5 14. Nb3 Nc6 15. Nd5 {1-0 Gadimbayli,A (2460)-Gokerkan,C (2461) Moscow Aeroflot op-A 2020 (7)}) 9... Qc7 {[%emt 0:22:22]} 10. Bf1 {[%emt 0:14:54]} Re8 {[%emt 0:24:56]} 11. h3 {[%emt 0:08:43]} h6 {[%emt 0:01:58]} 12. Nbd2 {[%emt 0:07:16]} b5 {[%emt 0:04:20]} 13. axb6 {[%emt 0:02:30]} Nxb6 {[%emt 0:00:02]} 14. e5 {[%emt 0:00:31]} dxe5 {[%emt 0:01:53]} 15. Nxe5 {[%emt 0:00:06]} a5 {[%emt 0:04:46]} 16. Ndc4 {[%emt 0:05:24]} Nxc4 {[%emt 0:00:53]} 17. Nxc4 {[%emt 0:00:04]} a4 {[%emt 0:02:15]} 18. Be2 {[%emt 0:05:58]} Bb7 {[%emt 0:02:12]} 19. Bf3 {[%emt 0:00:16]} Bxf3 {[%emt 0:06:27]} 20. Qxf3 {[%emt 0:02:06]} Nd5 {[%emt 0:00:01]} 21. Qg4 {[%emt 0:09:33]} Nf6 {[%emt 0:06:11]} 22. Bf4 {[%emt 0:02:04]} Qb7 {[%emt 0:00:01]} 23. Qg3 {[%emt 0:02:14]} Nh5 {[%emt 0:00:31]} 24. Qe3 {[%emt 0:00:42]} Nxf4 {[%emt 0:00:16]} 25. Qxf4 {[%emt 0:00:02]} Ra6 {[%emt 0:00:34]} 26. Ra2 {[%emt 0:03:01]} Rea8 {[%emt 0:01:39]} 27. Qe4 {[%emt 0:01:49]} Qb8 {[%emt 0:02:46]} 28. Ne5 {[%emt 0:04:41]} Qb5 {[%emt 0:01:58]} 29. Qc4 {[%emt 0:04:03]} Qe8 {[%emt 0:00:51]} 30. Rea1 {[%emt 0:00:46]} Bd6 {[%emt 0:00:36]} 31. Nf3 {[%emt 0:01:46]} Qb8 {[%emt 0:00:53]} 32. Nd2 {[%emt 0:02:22]} Rb6 {[%emt 0:01:17]} 33. Qe4 {[%emt 0:01:00]} Rba6 $1 {[%emt 0:02:11]} (33... Rxb2 $2 34. Rxb2 (34. Rxa4 Rxa4 35. Qxa4 Be5 $11) 34... Qd8 35. Rba2 $18 (35. Rxa4 Rc8 $18)) 34. Nc4 {[%emt 0:02:11]} Be7 {[%emt 0:00:08]} 35. Ra3 {[%emt 0:02:01]} R8a7 {[%emt 0:01:31]} 36. g3 {[%emt 0:02:37]} Qb5 {[%emt 0:00:56]} 37. Kg2 {[%emt 0:00:45]} Bf6 {[%emt 0:00:32]} 38. R1a2 {[%emt 0:01:04]} g6 {[%emt 0:00:33]} 39. Qf4 {[%emt 0:07:26]} Kg7 {[%emt 0:00:31]} 40. Nd6 {[%emt 0:01:56]} Qc6+ {[%emt 0:00:36]} 41. Ne4 {[%emt 0:50:39]} Be7 {[%emt 0:04:52]} 42. Kg1 {[%emt 0:00:00]} f5 {[%emt 0:18:46]} 43. Nd2 {[%emt 0:00:00]} c4 {[%emt 0:01:47]} 44. Qd4+ {[%emt 0:00:00]} ({Much less strong is} 44. Rc3 $6 Qd5 45. dxc4 (45. Qxc4 Qb7 $11) (45. Rxc4 Bg5 $11) 45... Qb7 $14) 44... e5 {[%emt 0:01:29]} 45. Qxe5+ {[%emt 0:00:00]} ({Of course not} 45. Qxc4 Bxa3 46. Rxa3 Kh7 47. Qxc6 Rxc6 $17) 45... Kh7 {[%emt 0:00:02]} 46. Nxc4 $1 {[%emt 0:00:00]} Bxa3 {[%emt 0:00:17]} 47. Rxa3 {[%emt 0:00:00]} Qd7 {[%emt 0:04:21]} 48. Ra1 {[%emt 0:00:00]} Re6 {[%emt 0:00:57]} 49. Qf4 {[%emt 0:00:00]} Qb5 {[%emt 0:02:33]} 50. Qf3 {[%emt 0:00:00]} 1/2-1/2

[Event "German Bundesliga 2023-24"]
[Site "Germany"]
[Date "2024.02.25"]
[Round "11.43"]
[White "Neugebauer, Martin"]
[Black "Andersen, Mads"]
[Result "1/2-1/2"]
[ECO "C77"]
[WhiteElo "2529"]
[BlackElo "2606"]
[Annotator "ChessBase"]
[PlyCount "53"]
[EventDate "2023.10.20"]
[EventType "team-tourn"]
[EventCountry "GER"]
[SourceTitle "playchess.com"]
[Source "ChessBase"]
[SourceQuality "1"]
[TimeControl "40/6000+30:3000+30"]

1. e4 {[%emt 0:00:09]} e5 {[%emt 0:00:11]} 2. Nf3 {[%emt 0:00:14]} Nc6 {[%emt 0:00:10]} 3. Bb5 {[%emt 0:00:40]} a6 {[%emt 0:00:13]} 4. Ba4 {[%emt 0:00:06]} Nf6 {[%emt 0:00:07]} 5. d3 {[%emt 0:01:59]} b5 {[%emt 0:01:00]} 6. Bb3 {[%emt 0:00:05]} Bc5 {[%emt 0:00:22]} 7. c3 {[%emt 0:00:28]} d6 {[%emt 0:01:09]} 8. O-O {[%emt 0:00:42]} Ba7 {[%emt 0:05:21]} 9. a4 {[%emt 0:07:20]} b4 {[%emt 0:02:14]} 10. a5 {[%emt 0:03:24]} Rb8 {[%emt 0:16:58]} 11. Nbd2 {[%emt 0:11:48]} O-O {[%emt 0:06:23]} 12. h3 {[%emt 0:05:33]} h6 {[%emt 0:17:55]} 13. Nc4 {[%emt 0:08:01]} bxc3 {[%emt 0:09:06]} 14. bxc3 {[%emt 0:00:16]} Be6 {[%emt 0:00:09]} 15. Re1 {[%emt 0:09:01]} Qc8 {[%emt 0:00:51]} 16. Ba4 {[%emt 0:06:42]} Ne7 {[%emt 0:07:12]} 17. Be3 {[%emt 0:01:34]} Bxe3 {[%emt 0:03:24]} 18. Nxe3 {[%emt 0:00:06]} Qb7 {[%emt 0:00:51]} 19. Qc2 {[%emt 0:14:57]} Bb3 {[%emt 0:08:07]} 20. Bxb3 {[%emt 0:03:35]} Qxb3 {[%emt 0:00:03]} 21. Reb1 {[%emt 0:01:32]} Qxc2 {[%emt 0:00:44]} 22. Nxc2 {[%emt 0:00:03]} Nc6 {[%emt 0:00:41]} 23. Nd2 {[%emt 0:10:55]} Rxb1+ {[%emt 0:08:26]} 24. Rxb1 {[%emt 0:00:14]} Nxa5 {[%emt 0:00:21]} 25. Nb4 {[%emt 0:02:21]} Ra8 {[%emt 0:03:21]} 26. Ra1 {[%emt 0:00:27]} Nb7 {[%emt 0:00:22]} 27. Rxa6 {[%emt 0:00:30]} 1/2-1/2

[Event "German Bundesliga 2023-24"]
[Site "Germany"]
[Date "2024.02.25"]
[Round "11.44"]
[White "Van Wely, Loek"]
[Black "Krejci, Jan"]
[Result "1/2-1/2"]
[ECO "E04"]
[WhiteElo "2626"]
[BlackElo "2517"]
[Annotator "TA"]
[PlyCount "74"]
[EventDate "2023.10.20"]
[EventType "team-tourn"]
[EventCountry "GER"]
[SourceTitle "playchess.com"]
[Source "ChessBase"]
[SourceQuality "1"]
[TimeControl "40/6000+30:3000+30"]

{[%evp 31,74,-47,-54,-56,-41,-90,-46,-40,-69,-104,-7,0,0,0,0,-15,0,0,-30,-35,-64,-254,-239,-260,-260,-403,-397,-496,-236,-270,-71,-80,0,0,0,0,0,0,0,0,0,0,0,0,0]} 1. Nf3 {[%emt 0:00:46]} d5 {[%emt 0:00:08]} 2. c4 {[%emt 0:00:24]} c6 {[%emt 0:03:34]} 3. d4 {[%emt 0:00:28]} Nf6 {[%emt 0:00:07]} 4. Nc3 {[%emt 0:00:06]} e6 {[%emt 0:00:30]} 5. g3 {[%emt 0:00:06]} dxc4 {[%emt 0:09:54]} 6. Bg2 {[%emt 0:01:46]} b5 {[%emt 0:02:33]} 7. Ne5 $1 {[%emt 0:02:36] 7.Ne5 scores better than 7.0-0.} Nd5 {[%emt 0:07:20]} 8. e4 {[%emt 0:02:38] E04: Open Catalan: 5 Nf3.} Nxc3 {[%emt 0:03:58]} 9. bxc3 {[%emt 0:00:58]} Be7 {[%emt 0:01:12]} 10. Qg4 {[%emt 0:20:39]} O-O {[%emt 0:03:12]} 11. Bh6 {[%emt 0:02:31]} Bf6 {[%emt 0:01:01]} 12. h4 {[%emt 0:00:23]} Kh8 $146 {[%emt 0:04:28]} ({Predecessor:} 12... c5 13. Rd1 cxd4 14. cxd4 Bb7 15. O-O Kh8 16. Bg5 Be7 17. d5 exd5 18. exd5 Bxg5 19. hxg5 {1-0 Toulzac,P (2297)-Jessel,S (2238) Paris Apsap op 75th 2004 (6)}) 13. Bg5 {[%emt 0:10:10]} Qa5 {[%emt 0:12:54]} 14. O-O {[%emt 0:04:36]} Bxe5 {[%emt 0:04:40]} 15. dxe5 {[%emt 0:00:32]} Nd7 {[%emt 0:00:41]} 16. Be7 {[%emt 0:02:23]} Re8 {[%emt 0:04:21]} 17. Bd6 {[%emt 0:01:37]} Qxc3 {[%emt 0:02:00]} 18. Rac1 {[%emt 0:13:05]} (18. Qf4 $15 {feels stronger.}) 18... Qa5 {[%emt 0:03:40]} (18... Nxe5 $2 19. Qh5 Qd2 20. Rfd1 $18 (20. Bxe5 Qd7 $18) (20. Qxe5 Qxa2 21. Ra1 Qc2 $18)) 19. Qh5 {[%emt 0:07:19]} Kg8 {[%emt 0:00:16]} (19... Qxa2 20. Qxf7 Rg8 21. h5 $16 (21. Qxe6 Nc5 $17)) 20. f4 $1 {[%emt 0:00:42]} b4 {[%emt 0:08:08]} ({Black should try} 20... Qxa2 $17 {Threatens to win with ...Qb2.} 21. f5 exf5 22. Rxf5 g6) 21. f5 $1 $11 {[%emt 0:05:02]} (21. Rxc4 $2 Ba6 (21... Qxa2 22. Rxb4 a5 23. Rbb1 $17) 22. Rxb4 Bxf1 23. Bxf1 Qxa2 $19) 21... exf5 {[%emt 0:01:28]} (21... Qxa2 $2 22. fxe6 (22. Bxb4 exf5 23. Rxf5 c3 $15) 22... Kh8 23. exf7 $18 (23. exd7 Bxd7 24. Bxb4 Be6 $18)) (21... Nxe5 $2 22. f6 Qb6+ 23. Kh2 $18) 22. Rxf5 {[%emt 0:08:18]} g6 {[%emt 0:00:28]} (22... Qxa2 23. Qxf7+ (23. Rxf7 c3 $18) 23... Kh8 24. Qxe8+) 23. Qh6 $1 {[%emt 0:02:29]} gxf5 {[%emt 0:09:44]} 24. exf5 {[%emt 0:00:19]} Qb6+ $1 {[%emt 0:02:45]} (24... Qxa2 25. f6 (25. Bxc6 Qb2 $11) 25... Nxf6 26. exf6) 25. Kh2 {[%emt 0:08:47]} Qd4 $1 {[%emt 0:03:02]} (25... Nxe5 $2 26. Bxe5 f6 27. Bxf6 $18 (27. Qxf6 Rxe5 28. Qxe5 Bxf5 $18)) 26. f6 $2 {[%emt 0:00:42]} ({Only move:} 26. Rf1 $1 $15 Kh8 (26... Nxe5 $2 27. Bxe5 Rxe5 28. Rf4 $18) 27. Bxc6) 26... Qg4 $19 {[%emt 0:00:30]} (26... Nxe5 27. Qg7#) 27. Rxc4 {[%emt 0:00:30]} Qg6 {[%emt 0:00:35]} (27... Nxe5 28. Bxe5 Qg6 (28... Qxc4 29. Qg7#) 29. Qxg6+ fxg6 (29... hxg6 30. Bxc6 Rxe5 31. Bxa8 $11) 30. Bxc6 Rxe5 31. Bxa8 Re2+ 32. Kh1 $11) 28. Qf4 {[%emt 0:05:22]} (28. Qxg6+ {might work better.} hxg6 29. Bxc6) 28... Nb6 $19 {[%emt 0:02:43]} (28... b3 29. Be4 Nxe5 (29... bxa2 $2 30. Bxg6 hxg6 31. Ra4 $18) 30. Bxg6 Ng4+ 31. Kg2 Re2+ 32. Kg1 (32. Kf1 Rf2+ 33. Qxf2 Nxf2 $11) 32... Re1+ (32... hxg6 33. axb3 Re1+ 34. Kg2 $14) (32... bxa2 $2 33. Bxf7+ Kxf7 34. Rc1 $18) 33. Kg2 Re2+ (33... bxa2 34. Bd3 $11) 34. Kg1 (34. Kf1 Rf2+ 35. Qxf2 Nxf2 $15) 34... Re1+ (34... hxg6 35. axb3 Bf5 36. Be7 $11) (34... bxa2 $2 35. Bxf7+ Kxf7 36. Rc1 $18) 35. Kg2 bxa2 36. Bd3 $11 (36. Ra4 hxg6 37. Rxa2 Be6 $17)) 29. Rxc6 {[%emt 0:02:33]} Bf5 {[%emt 0:01:09]} (29... Be6 $142 30. Be7 Nd5 (30... Bxa2 31. Be4 $17)) 30. e6 $19 {[%emt 0:05:09]} Rxe6 $2 {[%emt 0:02:21]} (30... Rac8 $19 31. e7 Nd7 (31... Qxf6 32. Be5 $15)) 31. Rc5 $17 {[%emt 0:00:00] [#]} Rxf6 {[%emt 0:03:17]} ({Better is} 31... Be4 $1 $17 32. Rg5 Nd5) 32. Bxa8 $11 {[%emt 0:01:33]} Bd7 {[%emt 0:02:33]} (32... Nxa8 $2 {loses.} 33. Be7 $18) 33. Qxb4 {[%emt 0:01:06]} h6 {[%emt 0:03:25]} ({Inferior is} 33... Nxa8 34. Qb8+) (33... Rxd6 $2 {perishes.} 34. Rg5 $18) 34. Be4 {[%emt 0:00:23]} Qg4 {[%emt 0:01:54]} 35. Bf4 {[%emt 0:00:57]} Rxf4 {[%emt 0:02:23]} 36. gxf4 {[%emt 0:00:04]} Qxf4+ {[%emt 0:00:22]} 37. Kg1 {[%emt 0:00:22]} (37. Kg2 $5 Qg4+ $8 38. Kh1 $11) 37... Qe3+ {[%emt 0:03:28]} 1/2-1/2

[Event "German Bundesliga 2023-24"]
[Site "Germany"]
[Date "2024.02.25"]
[Round "11.45"]
[White "Kraus, Tomas"]
[Black "Ganguly, Surya Shekhar"]
[Result "1/2-1/2"]
[ECO "C47"]
[WhiteElo "2491"]
[BlackElo "2578"]
[Annotator "TA"]
[PlyCount "117"]
[EventDate "2023.10.20"]
[EventType "team-tourn"]
[EventCountry "GER"]
[SourceTitle "playchess.com"]
[Source "ChessBase"]
[SourceQuality "1"]
[TimeControl "40/6000+30:3000+30"]

{[%evp 40,117,64,67,64,56,75,68,75,83,86,57,68,47,79,60,130,130,130,130,254,231,257,263,263,250,314,314,287,119,119,119,119,119,119,119,119,119,119,119,119,119,119,119,119,119,119,119,119,119,267,161,214,304,304,265,279,271,264,138,138,138,138,138,138,138,138,138,138,8,8,8,8,0,0,0,0,-8,8,8]} 1. e4 {[%emt 0:00:03]} e5 {[%emt 0:00:14]} 2. Nf3 {[%emt 0:00:19]} Nc6 {[%emt 0:00:06]} 3. Nc3 {[%emt 0:04:45]} Nf6 {[%emt 0:00:09]} 4. d4 {[%emt 0:00:44]} exd4 {[%emt 0:00:05]} 5. Nxd4 {[%emt 0:00:05]} Bb4 {[%emt 0:00:18]} 6. Nxc6 {[%emt 0:00:26]} bxc6 {[%emt 0:00:04]} 7. Bd3 {[%emt 0:00:06]} O-O {[%emt 0:00:53]} 8. O-O {[%emt 0:00:07]} d5 {[%emt 0:00:03]} 9. Bd2 {[%emt 0:02:29]} Bxc3 {[%emt 0:07:48] C47: Scotch Four Knights and Four Knights with 4 g3.} 10. Bxc3 {[%emt 0:00:32]} Nxe4 {[%emt 0:02:01]} 11. Bxe4 {[%emt 0:00:06]} dxe4 {[%emt 0:00:07]} 12. Qh5 {[%emt 0:00:03]} h6 {[%emt 0:14:56]} 13. Qe5 $146 {[%emt 0:04:22]} ({Predecessor:} 13. Rfe1 f5 14. Re3 Qg5 15. Rg3 Qxh5 16. Rxg7+ Kh8 17. Rf7+ Kg8 18. Rg7+ Kh8 19. Rg5+ {1-0 Boyer,M (2439)-Lopez Gracia,F (2259) Titled Tuesday intern op 21st Jun Late blitz 2022 (2)}) 13... Qg5 {[%emt 0:01:23]} 14. Qxe4 {[%emt 0:02:28]} Qg6 {[%emt 0:06:00]} 15. Qxg6 {[%emt 0:05:52]} fxg6 {[%emt 0:00:07]} 16. Rfe1 {[%emt 0:06:08]} Bf5 {[%emt 0:01:02]} 17. Rad1 {[%emt 0:06:52]} Rad8 {[%emt 0:05:05]} 18. h4 {[%emt 0:06:23]} Kf7 {[%emt 0:03:00]} 19. Rd4 {[%emt 0:03:33]} Rxd4 {[%emt 0:02:33]} 20. Bxd4 {[%emt 0:00:19]} a6 {[%emt 0:00:48]} 21. c3 {[%emt 0:10:25]} Rd8 {[%emt 0:02:01]} 22. b4 {[%emt 0:07:26]} h5 {[%emt 0:08:58]} 23. a4 {[%emt 0:02:51]} Bc2 {[%emt 0:04:32]} 24. a5 {[%emt 0:00:29]} Re8 {[%emt 0:05:24]} 25. Be5 {[%emt 0:03:56]} Re7 {[%emt 0:02:46]} 26. Kh2 {[%emt 0:02:35]} Rd7 {[%emt 0:14:52]} 27. Kg3 {[%emt 0:01:53]} Rd1 {[%emt 0:02:39]} ({Better is} 27... c5 $14) 28. Rxd1 $16 {[%emt 0:13:34]} Bxd1 {[%emt 0:00:06]} 29. Kf4 {[%emt 0:00:39]} c5 {[%emt 0:04:08]} (29... Ke6 $16 30. Bxc7 (30. Bxg7 Be2 $16) 30... Bb3) 30. b5 $1 $18 {[%emt 0:03:04]} (30. Bxc7 cxb4 31. cxb4 Bb3 $16) (30. bxc5 c6 $14) 30... axb5 {[%emt 0:00:05]} 31. a6 $1 {[%emt 0:03:00]} (31. Bxc7 $6 Ke6 $16) 31... Bb3 {[%emt 0:00:36]} 32. Bxc7 {[%emt 0:02:07]} Ke6 {[%emt 0:17:02]} 33. Kg5 {[%emt 0:02:35]} Bd5 {[%emt 0:01:09]} 34. f3 {[%emt 0:01:31]} (34. Kxg6 $18 {is the precise move to win. Hoping for f3.} Bxg2 35. f4 (35. Kxh5 $2 Kf5 36. Bh2 Bf3#) (35. Kxg7 Bf3 $11) 35... Be4+ 36. Kxg7) 34... b4 $16 {[%emt 0:01:27]} 35. cxb4 {[%emt 0:01:01]} (35. Kxg6 $2 {is the wrong capture.} b3 36. c4 Bxc4 $19 (36... b2 $2 37. cxd5+ Kxd5 38. Kxg7 $19)) 35... cxb4 {[%emt 0:00:01]} 36. Ba5 {[%emt 0:01:20]} (36. Kxg6 $2 b3 37. Kxh5 b2 $19) 36... b3 {[%emt 0:00:03]} 37. Bc3 $1 {[%emt 0:00:04]} (37. Kxg6 $2 {loses.} b2 38. Kg5 b1=Q $19 (38... b1=B 39. Kxh5 Ke7 40. Kg4 $17)) 37... Kf7 {[%emt 0:00:10]} 38. Kf4 {[%emt 0:01:03]} Ba8 {[%emt 0:02:06]} 39. Ke5 {[%emt 0:02:26]} Ke7 {[%emt 0:00:02]} 40. a7 {[%emt 0:01:27]} Bb7 {[%emt 0:03:09]} 41. Kf4 {[%emt 0:14:52]} Kf7 {[%emt 0:00:46]} 42. Ke3 {[%emt 0:00:23]} Ke6 {[%emt 0:01:26]} 43. Bxg7 {[%emt 0:03:14]} Kf5 {[%emt 0:01:47]} 44. Kf2 {[%emt 0:21:19]} g5 {[%emt 0:01:31]} (44... Bc6 $16 {is a better defense.} 45. Ke3 Bd5) 45. Kg3 $18 {[%emt 0:00:30]} gxh4+ {[%emt 0:01:06]} 46. Kxh4 {[%emt 0:00:05]} Kg6 {[%emt 0:00:16]} 47. Bb2 {[%emt 0:00:05]} Bc6 {[%emt 0:01:16] [#]} 48. Kg3 $1 {[%emt 0:00:50]} Kf5 {[%emt 0:00:08] [#]} 49. Bc1 $1 {[%emt 0:01:30]} Bb7 {[%emt 0:04:49]} 50. Kf2 {[%emt 0:00:11]} h4 {[%emt 0:01:04]} 51. Ke3 {[%emt 0:01:23]} Ba8 {[%emt 0:00:47]} 52. Kd3 {[%emt 0:04:41]} h3 {[%emt 0:02:00]} 53. gxh3 {[%emt 0:00:05]} Bxf3 {[%emt 0:00:05]} 54. Kc4 {[%emt 0:00:19]} (54. Kc3 $16 Bd5 55. Be3) 54... Kg6 {[%emt 0:00:57]} 55. Kxb3 {[%emt 0:00:20]} (55. h4 $5 Kh5 $8 56. Kxb3 Kxh4 57. Kb4 $11) 55... Kh5 {[%emt 0:00:05]} 56. Bg5 {[%emt 0:00:14]} Kxg5 {[%emt 0:00:05]} 57. h4+ {[%emt 0:00:02]} Kxh4 {[%emt 0:00:07]} 58. a8=B {[%emt 0:00:05]} Bd5+ {[%emt 0:00:06]} 59. Bxd5 {[%emt 0:00:06]} 1/2-1/2

[Event "German Bundesliga 2023-24"]
[Site "Germany"]
[Date "2024.02.25"]
[Round "11.46"]
[White "Nikolic, Predrag"]
[Black "Ferreira, Jorge Viterbo"]
[Result "0-1"]
[ECO "E11"]
[WhiteElo "2531"]
[BlackElo "2525"]
[Annotator "ChessBase"]
[PlyCount "68"]
[EventDate "2023.10.20"]
[EventType "team-tourn"]
[EventCountry "GER"]
[SourceTitle "playchess.com"]
[Source "ChessBase"]
[SourceQuality "1"]
[TimeControl "40/6000+30:3000+30"]

1. d4 {[%emt 0:00:05]} Nf6 {[%emt 0:00:08]} 2. c4 {[%emt 0:00:05]} e6 {[%emt 0:00:07]} 3. Nf3 {[%emt 0:00:17]} Bb4+ {[%emt 0:00:10]} 4. Bd2 {[%emt 0:00:39]} Qe7 {[%emt 0:00:11]} 5. g3 {[%emt 0:01:23]} Nc6 {[%emt 0:00:13]} 6. Nc3 {[%emt 0:01:03]} Bxc3 {[%emt 0:00:38]} 7. Bxc3 {[%emt 0:00:06]} Ne4 {[%emt 0:00:09]} 8. Rc1 {[%emt 0:01:31]} O-O {[%emt 0:00:20]} 9. Bg2 {[%emt 0:00:47]} d6 {[%emt 0:00:22]} 10. O-O {[%emt 0:01:34]} e5 {[%emt 0:01:19]} 11. d5 {[%emt 0:01:11]} Nd8 {[%emt 0:00:49]} 12. Nd2 {[%emt 0:02:33]} Nxc3 {[%emt 0:01:32]} 13. Rxc3 {[%emt 0:03:29]} f5 {[%emt 0:00:21]} 14. c5 {[%emt 0:02:11]} Nf7 {[%emt 0:00:46]} 15. b4 {[%emt 0:03:33]} Bd7 {[%emt 0:16:17]} 16. a4 {[%emt 0:06:27]} e4 {[%emt 0:18:05]} 17. Qb3 {[%emt 0:02:26]} h5 {[%emt 0:09:43]} 18. Rfc1 {[%emt 0:02:07]} b6 {[%emt 0:05:27]} 19. a5 {[%emt 0:12:01]} Bb5 {[%emt 0:04:51]} 20. cxb6 {[%emt 0:00:58]} cxb6 {[%emt 0:02:00]} 21. Rc7 {[%emt 0:00:08]} Qf6 {[%emt 0:14:21]} 22. Qe3 {[%emt 0:03:46]} Ne5 {[%emt 0:02:44]} 23. h3 {[%emt 0:06:12]} bxa5 {[%emt 0:04:26]} 24. bxa5 {[%emt 0:00:16]} Rf7 {[%emt 0:01:11]} 25. Nb3 {[%emt 0:03:22]} Rxc7 {[%emt 0:12:49]} 26. Rxc7 {[%emt 0:00:09]} Bc4 {[%emt 0:00:06]} 27. Rxa7 {[%emt 0:05:11]} Rb8 {[%emt 0:05:04]} 28. Nd4 {[%emt 0:20:34]} Rb1+ {[%emt 0:01:55]} 29. Bf1 {[%emt 0:03:01]} Bxd5 {[%emt 0:01:01]} 30. Rc7 {[%emt 0:04:10]} Nc6 {[%emt 0:03:58]} 31. Rc8+ {[%emt 0:05:56]} Kh7 {[%emt 0:00:18]} 32. Nc2 {[%emt 0:00:04]} Nxa5 {[%emt 0:01:44]} 33. Qa7 {[%emt 0:00:32]} Nc4 {[%emt 0:01:29]} 34. Qa6 {[%emt 0:04:41]} f4 {[%emt 0:01:49]} 0-1

[Event "German Bundesliga 2023-24"]
[Site "Germany"]
[Date "2024.02.25"]
[Round "11.47"]
[White "Winterberg, Lukas"]
[Black "Naumann, Alexander"]
[Result "1-0"]
[ECO "D38"]
[WhiteElo "2410"]
[BlackElo "2498"]
[Annotator "TA"]
[PlyCount "83"]
[EventDate "2023.10.20"]
[EventType "team-tourn"]
[EventCountry "GER"]
[SourceTitle "playchess.com"]
[Source "ChessBase"]
[SourceQuality "1"]
[TimeControl "40/6000+30:3000+30"]

{[%evp 12,83,0,0,0,-7,-8,1,-1,0,9,0,14,0,0,0,42,17,27,29,29,10,40,33,34,16,32,32,47,6,28,9,58,29,50,15,85,81,77,80,122,117,120,98,451,445,511,495,531,507,896,907,1256,992,1212,1170,1408,1216,1362,1331,1455,1499,1388,1245,1152,1023,1720,1152,29973,29973,29949,12820,6126,5216]} 1. d4 {[%emt 0:00:03]} Nf6 {[%emt 0:00:06]} 2. Nf3 {[%emt 0:00:12]} d5 {[%emt 0:00:08]} 3. c4 {[%emt 0:00:11]} e6 {[%emt 0:00:06]} 4. Nc3 {[%emt 0:00:13]} Bb4 {[%emt 0:00:32]} 5. Qa4+ {[%emt 0:00:23]} Nc6 {[%emt 0:00:08][%cal Bb8c6,Bc6a5,Ba5c4][%mdl 32]} 6. a3 {[%emt 0:00:14]} Bxc3+ {[%emt 0:04:05]} 7. bxc3 {[%emt 0:00:03]} Ne4 {[%emt 0:01:27]} 8. e3 {[%emt 0:00:26]} Nxc3 {[%emt 0:08:59]} 9. Qc2 {[%emt 0:00:14]} Ne4 {[%emt 0:00:06] The position is equal.} 10. Bd3 {[%emt 0:00:16]} Na5 {[%emt 0:06:12]} 11. cxd5 {[%emt 0:25:37]} exd5 {[%emt 0:00:32]} 12. Bxe4 {[%emt 0:00:21]} dxe4 {[%emt 0:00:06]} 13. Qxe4+ {[%emt 0:00:33]} Qe7 {[%emt 0:02:14]} 14. Qxe7+ {[%emt 0:19:52]} Kxe7 {[%emt 0:00:15]} 15. Bd2 {[%emt 0:00:30]} Nc4 {[%emt 0:07:29]} 16. Rc1 {[%emt 0:10:01]} Nxd2 {[%emt 0:00:55]} 17. Kxd2 {[%emt 0:00:13]} c6 {[%emt 0:00:21]} 18. Rb1 {[%emt 0:01:33]} f6 {[%emt 0:01:37]} 19. e4 {[%emt 0:01:05]} Rf8 {[%emt 0:15:50]} 20. g4 {[%emt 0:14:56]} h5 {[%emt 0:13:48]} 21. h3 {[%emt 0:03:53][%cal Bh2h3,Bh3g4,Bg4f5][%mdl 32]} Rh8 {[%emt 0:03:25]} (21... b6 $11) 22. Nh4 $14 {[%emt 0:01:18]} Kf7 {[%emt 0:00:27] Against Ng6} 23. Nf5 {[%emt 0:02:31]} hxg4 {[%emt 0:14:14]} (23... b6 $11) 24. hxg4 $16 {[%emt 0:04:27]} Rxh1 {[%emt 0:00:10]} 25. Rxh1 {[%emt 0:00:09] [#] Rh8 is the strong threat.} Bxf5 {[%emt 0:05:46]} 26. gxf5 $11 {[%emt 0:00:03][%mdl 4096] Endgame. KR-KR} ({Reject} 26. exf5 $6 b5 $11) 26... Rc8 {[%emt 0:00:30]} 27. f4 {[%emt 0:06:57]} c5 $2 {[%emt 0:11:07][%mdl 8192] Loses the game.} (27... Rb8 $16 {is a better chance.} 28. Kc3 Rc8) 28. d5 $18 {[%emt 0:07:04][%cal Bd4d5,Bd5d6][%mdl 32]} Re8 {[%emt 0:01:28]} 29. Kd3 {[%emt 0:01:56]} b5 {[%emt 0:00:41]} 30. Rc1 {[%emt 0:02:12]} Rc8 {[%emt 0:03:03]} (30... c4+ $142 31. Kd4 Rh8) 31. e5 {[%emt 0:00:23]} Ke7 {[%emt 0:07:25]} 32. d6+ {[%emt 0:03:01]} Kd7 {[%emt 0:00:08]} 33. Ke4 {[%emt 0:00:11] [#] White wants to mate with Kd5.} Kc6 {[%emt 0:00:14]} 34. Rd1 {[%emt 0:00:32] Intending d7 and mate.} Rd8 {[%emt 0:01:51]} 35. e6 {[%emt 0:00:13] Threatening mate with d7.} Rxd6 {[%emt 0:00:00]} 36. e7 {[%emt 0:00:08]} Rxd1 {[%emt 0:00:00]} 37. e8=Q+ {[%emt 0:00:11]} (37. e8=R {is a self mate.} Re1+ 38. Kd3 Rxe8 39. Kc3 Kd5 40. Kd3 b4 41. axb4 cxb4 42. Kd2 Kc4 43. Kc2 b3+ 44. Kd2 Re4 45. Kc1 Kc3 (45... Rxf4 46. Kd2 Re4 47. Kc1 Kc3 48. Kd1 a5 49. Kc1 Re1#) 46. Kd1 Re7 47. Kc1 Re1#) 37... Kb6 {[%emt 0:01:53]} 38. Qb8+ {[%emt 0:00:13]} Ka6 {[%emt 0:00:35]} 39. Qc7 {[%emt 0:00:23][%csl LRc5,LRg7]} c4 {[%emt 0:01:25]} 40. Qxg7 {[%emt 0:04:37]} Rd6 {[%emt 0:00:15]} 41. Qc7 {[%emt 0:50:14]} Rb6 {[%emt 0:02:15]} 42. Kd4 {[%emt 0:00:00] Weighted Error Value: White=0.09 (flawless) /Black=0.76.  Loses game:     	---       	Black=1      Mistake:       	---       	Black=3      Inaccurate:     	White=2     	Black=4      OK:         	White=8     	Black=6      Best:        	White=2     	---} 1-0